fUSD/lending_fUSD_20250623
["ID","MTS","AMOUNT","RATE_DAILY","PERIOD"]
[367198769,1750698665277,-1102.28,0.00023541,2]
[367198770,1750698665287,-978.05,0.00023541,2]
[367198771,1750698665297,-1290.08,0.00023541,2]
[367198772,1750698665307,-490.0,0.00023541,2]
[367198773,1750698665317,-757.53,0.00023541,2]
[367198774,1750698665331,-490.0,0.00023541,2]
[367198775,1750698665341,-490.0,0.00023541,2]
[367198776,1750698665352,-6273.63,0.00023541,2]
[367198777,1750698665361,-490.0,0.00023541,2]
[367198778,1750698665371,-2190.49,0.00023541,2]
[367198779,1750698665382,-693.85,0.00023541,2]
[367198780,1750698665392,-969.95,0.00023541,2]
[367198781,1750698665402,-844.27,0.00023541,2]
[367198782,1750698665412,-490.0,0.00023541,2]
[367198783,1750698665421,-1768.01,0.00023541,2]
[367198784,1750698665431,-490.0,0.00023541,2]
[367198785,1750698665441,-1033.79,0.00023541,2]
[367198786,1750698665451,-490.0,0.00023541,2]
[367198787,1750698665461,-2829.12,0.00023541,2]
[367198788,1750698665471,-490.0,0.00023541,2]
[367198789,1750698665481,-1421.12,0.00023541,2]
[367198790,1750698665492,-3039.87,0.00023541,2]
[367198791,1750698665502,-490.0,0.00023541,2]
[367198792,1750698665511,-615.69,0.00023542,2]
[367198793,1750698665521,-490.0,0.00023542,2]
[367198794,1750698665530,-490.0,0.00023542,2]
[367198795,1750698665540,-490.0,0.00023542,2]
[367198796,1750698665549,-490.0,0.00023542,2]
[367198797,1750698665559,-799.05,0.00023542,2]
[367198798,1750698665568,-490.0,0.00023542,2]
[367198799,1750698665579,-649.48,0.00023542,2]
[367198800,1750698665589,-490.0,0.00023542,2]
[367198801,1750698665599,-747.22,0.00023542,2]
[367198802,1750698665609,-582.61,0.00023542,2]
[367198803,1750698665619,-582.61,0.00023542,2]
[367198804,1750698665629,-500.0,0.00023542,2]
[367198805,1750698665639,-402.39059455,0.00023542,2]
[367198806,1750698665650,-571.21,0.00023542,2]
[367198807,1750698665661,-570.24867305,0.00023542,2]
[367198808,1750698665672,-490.0,0.00023542,2]
[367198809,1750698665682,-490.0,0.00023542,2]
[367198810,1750698665693,-490.0,0.00023542,2]
[367198811,1750698665703,-1515.67,0.00023542,2]
[367198812,1750698665714,-1565.82,0.00023542,2]
[367198813,1750698665726,-2422.44,0.00023542,2]
[367198814,1750698665736,-1311.67,0.00023542,2]
[367198815,1750698665747,-500.0,0.00023542,2]
[367198816,1750698665757,-1787.29,0.00023542,2]
[367198817,1750698665769,-490.0,0.00023542,2]
[367198818,1750698665779,-490.0,0.00023542,2]
[367198819,1750698665789,-2072.67,0.00023542,2]
[367198820,1750698665799,-287.49311077,0.00023542,2]
[367198821,1750698665809,-490.0,0.00023542,2]
[367198822,1750698665819,-490.0,0.00023542,2]
[367198823,1750698665833,-821.3,0.00023542,2]
[367198824,1750698665843,-1673.72,0.00023542,2]
[367198825,1750698665853,-2237.1,0.00023542,2]
[367198826,1750698665863,-1610.12,0.00023542,2]
[367198827,1750698665873,-1083.0,0.00023542,2]
[367198828,1750698665884,-1106.33,0.00023542,2]
[367198829,1750698665894,-490.0,0.00023542,2]
[367198830,1750698665903,-490.0,0.00023542,2]
[367198831,1750698665913,-490.0,0.00023542,2]
[367198832,1750698665923,-2050.62,0.00023542,2]
[367198833,1750698665933,-500.0,0.00023542,2]
[367198834,1750698665943,-1208.82,0.00023542,2]
[367198835,1750698665954,-498.0,0.00023542,2]
[367198836,1750698665965,-1726.23,0.00023542,2]
[367198837,1750698665974,-719.16,0.00023542,2]
[367198838,1750698665984,-490.0,0.00023542,2]
[367198839,1750698665994,-1608.26,0.00023542,2]
[367198840,1750698666004,-1628.29,0.00023542,2]
[367198841,1750698666014,-1088.21,0.00023542,2]
[367198842,1750698666024,-490.0,0.00023542,2]
[367198843,1750698666036,-1428.05,0.00023542,2]
[367198844,1750698666047,-548.65,0.00023542,2]
[367198845,1750698666057,-1785.44,0.00023542,2]
[367198846,1750698666067,-608.03,0.00023542,2]
[367198847,1750698666082,-1037.72,0.00023542,2]
[367198848,1750698666092,-490.0,0.00023542,2]
[367198849,1750698666102,-490.0,0.00023542,2]
[367198850,1750698666112,-490.0,0.00023542,2]
[367198851,1750698666122,-938.56,0.00023542,2]
[367198852,1750698666132,-490.0,0.00023542,2]
[367198853,1750698666142,-490.0,0.00023542,2]
[367198854,1750698666153,-490.0,0.00023542,2]
[367198855,1750698666163,-490.0,0.00023542,2]
[367198856,1750698666173,-490.0,0.00023542,2]
[367198857,1750698666183,-1599.2,0.00023542,2]
[367198858,1750698666194,-2233.74,0.00023542,2]
[367198859,1750698666204,-779.66,0.00023542,2]
[367198860,1750698666214,-2071.71,0.00023542,2]
[367198861,1750698666224,-2448.89,0.00023542,2]
[367198862,1750698666233,-1609.83,0.00023542,2]
[367198863,1750698666243,-771.85,0.00023542,2]
[367198864,1750698666254,-17894.27,0.00023542,2]
[367198865,1750698666264,-490.0,0.00023542,2]
[367198866,1750698666275,-2144.67,0.00023542,2]
[367198867,1750698666285,-1031.7,0.00023542,2]
[367198868,1750698666296,-1608.07,0.00023542,2]
[367198869,1750698666306,-490.0,0.00023542,2]
[367198870,1750698666316,-1643.47,0.00023542,2]
[367198871,1750698666326,-1164.0,0.00023542,2]
[367198872,1750698666340,-3265.53,0.00023542,2]
[367198873,1750698666350,-1649.42,0.00023542,2]
[367198874,1750698666360,-151.0,0.00023542,7]
[367198875,1750698666370,-242.256376,0.00023542,7]
[367198876,1750698666381,-490.0,0.00023542,2]
[367198877,1750698666392,-2939.17,0.00023542,2]
[367198878,1750698666402,-6326.13,0.00023542,2]
[367198879,1750698666413,-2564.45,0.00023542,2]
[367198880,1750698666424,-2032.0,0.00023542,2]
[367198881,1750698666434,-7426.18,0.00023542,2]
[367198882,1750698666444,-1353.02,0.00023542,2]
[367198883,1750698666454,-6426.78,0.00023542,2]
[367198884,1750698666464,-732.12,0.00023542,2]
[367198885,1750698666474,-1188.46,0.00023542,2]
[367198886,1750698666484,-3016.63,0.00023542,2]
[367198887,1750698666494,-671.94,0.00023542,2]
[367198888,1750698666504,-1261.71,0.00023542,2]
[367198889,1750698666514,-8384.06,0.00023542,2]
[367198890,1750698666524,-2734.07,0.00023542,2]
[367198891,1750698666534,-1338.84,0.00023542,2]
[367198892,1750698666547,-785.94,0.00023542,2]
[367198893,1750698666561,-503.82,0.00023542,2]
[367198894,1750698666571,-2908.2,0.00023542,2]
[367198895,1750698666584,-490.0,0.00023542,2]
[367198896,1750698666835,-1254.38,0.00023542,2]
[367198897,1750698666846,-792.37,0.00023542,2]
[367198898,1750698666857,-3998.48,0.00023542,2]
[367198899,1750698666866,-490.0,0.00023542,2]
[367198900,1750698666875,-6443.202937,0.00023542,2]
[367198901,1750698666884,-1561.52,0.00023542,2]
[367198902,1750698666893,-1450.98,0.00023542,2]
[367198903,1750698666903,-1020.65,0.00023542,2]
[367198904,1750698666912,-151.219152,0.00023542,2]
[367198905,1750698666922,-1226.48,0.00023542,2]
[367198906,1750698666931,-927.5,0.00023542,2]
[367198907,1750698666940,-490.0,0.00023542,2]
[367198908,1750698666950,-888.64,0.00023542,2]
[367198909,1750698666960,-1568.0,0.00023542,2]
[367198910,1750698666969,-573.95,0.00023542,2]
[367198911,1750698666978,-1236.22,0.00023542,2]
[367198912,1750698666988,-2086.57,0.00023542,2]
[367198913,1750698666997,-11128.95,0.00023542,2]
[367198914,1750698667006,-500.0,0.00023542,2]
[367198915,1750698667016,-3474.170252,0.00023542,2]
[367198916,1750698667025,-578.12,0.00023542,2]
[367198917,1750698667034,-1094.52,0.00023542,2]
[367198918,1750698667043,-1429.33,0.00023542,2]
[367198919,1750698667054,-1435.25,0.00023542,2]
[367198920,1750698667066,-2550.63,0.00023542,2]
[367198921,1750698667075,-1705.63,0.00023542,2]
[367198922,1750698667089,-1403.27,0.00023542,2]
[367198923,1750698667099,-1000.0,0.00023542,2]
[367198924,1750698667107,-1728.498739,0.00023542,7]
[367198925,1750698667116,-800.49,0.00023542,2]
[367198926,1750698667125,-2306.86,0.00023542,2]
[367198927,1750698667140,-3458.41,0.00023542,2]
[367198928,1750698667150,-1728.49874,0.00023542,7]
[367198929,1750698667159,-573.21,0.00023542,2]
[367198930,1750698667167,-1743.2,0.00023542,2]
[367198931,1750698667176,-14104.896354,0.00023542,2]
[367198932,1750698667185,-10144.14,0.00023542,2]
[367198933,1750698667195,-943.07,0.00023542,2]
[367198934,1750698667204,-943.07,0.00023542,2]
[367198935,1750698667214,-943.07,0.00023542,2]
[367198936,1750698667224,-490.0,0.00023542,2]
[367198937,1750698667234,-886.2,0.00023542,2]
[367198938,1750698667243,-2114.89,0.00023542,2]
[367198939,1750698667254,-4042.92,0.00023542,2]
[367198940,1750698667263,-2394.25,0.00023542,2]
[367198941,1750698667272,-500.0,0.00023542,2]
[367198942,1750698667281,-731.69,0.00023542,2]
[367198943,1750698667290,-1526.25,0.00023542,2]
[367198944,1750698667300,-1361.84,0.00023542,2]
[367198945,1750698667309,-2763.6,0.00023542,2]
[367198946,1750698667318,-493.15,0.00023542,2]
[367198947,1750698667327,-5649.05,0.00023542,2]
[367198948,1750698667340,-841.69,0.00023542,2]
[367198949,1750698667350,-1021.6,0.00023542,2]
[367198950,1750698667359,-1566.44,0.00023542,2]
[367198951,1750698667368,-1307.2,0.00023542,2]
[367198952,1750698667378,-2220.37,0.00023542,2]
[367198953,1750698667387,-1694.76,0.00023542,2]
[367198954,1750698667397,-1333.28,0.00023542,2]
[367198955,1750698667406,-4728.59,0.00023542,2]
[367198956,1750698667415,-6206.01,0.00023542,2]
[367198957,1750698667425,-1015.78,0.00023542,2]
[367198958,1750698667434,-1015.78,0.00023542,2]
[367198959,1750698667444,-1015.78,0.00023542,2]
[367198960,1750698667453,-830.47,0.00023542,2]
[367198961,1750698667463,-1672.77,0.00023542,2]
[367198962,1750698667472,-1243.22,0.00023542,2]
[367198963,1750698667482,-585.45,0.00023542,2]
[367198964,1750698667491,-15974.58,0.00023542,2]
[367198965,1750698667500,-1042.64,0.00023542,2]
[367198966,1750698667510,-1213.26,0.00023542,2]
[367198967,1750698667519,-1057.02,0.00023542,2]
[367198968,1750698667529,-8982.57,0.00023542,2]
[367198969,1750698667539,-490.0,0.00023542,2]
[367198970,1750698667549,-3184.98,0.00023542,2]
[367198971,1750698667559,-584.73,0.00023542,2]
[367198972,1750698667568,-955.19,0.00023542,2]
[367198973,1750698667582,-1281.44,0.00023542,2]
[367198974,1750698667592,-1451.39,0.00023542,2]
[367198975,1750698667601,-1334.22,0.00023542,2]
[367198976,1750698667611,-3646.54,0.00023542,2]
[367198977,1750698667621,-2077.8,0.00023542,2]
[367198978,1750698667631,-1126.53,0.00023542,2]
[367198979,1750698667640,-1062.91,0.00023542,2]
[367198980,1750698667649,-1754.15,0.00023542,2]
[367198981,1750698667659,-783.6,0.00023542,2]
[367198982,1750698667669,-1637.16,0.00023542,2]
[367198983,1750698667678,-362.44527131,0.00023542,2]
[367198984,1750698667688,-1986.85,0.00023542,2]
[367198985,1750698667697,-30257.07,0.00023542,2]
[367198986,1750698667706,-490.0,0.00023542,2]
[367198987,1750698667717,-4431.79,0.00023542,2]
[367198988,1750698667726,-1908.75,0.00023542,2]
[367198989,1750698667736,-1251.43,0.00023542,2]
[367198990,1750698667746,-1043.13,0.00023542,2]
[367198991,1750698667755,-1449.88,0.00023542,2]
[367198992,1750698667764,-3408.85,0.00023542,2]
[367198993,1750698667774,-1487.37,0.00023542,2]
[367198994,1750698667784,-1477.39,0.00023542,2]
[367198995,1750698667793,-1309.69,0.00023542,2]
[367198996,1750698667803,-1399.23,0.00023542,2]
[367198997,1750698667812,-4978.94,0.00023542,2]
[367198998,1750698667822,-1851.33,0.00023542,2]
[367198999,1750698667834,-1549.84,0.00023542,2]
[367199000,1750698667844,-1569.7,0.00023542,2]
[367199001,1750698667853,-4930.1,0.00023542,2]
[367199002,1750698667863,-2819.42,0.00023542,2]
[367199003,1750698667873,-3120.58,0.00023542,2]
[367199004,1750698667882,-1734.46,0.00023542,2]
[367199005,1750698667892,-1884.11,0.00023542,2]
[367199006,1750698667902,-4270.66,0.00023542,2]
[367199007,1750698667912,-747.75,0.00023542,2]
[367199008,1750698667921,-2881.99,0.00023542,2]
[367199009,1750698667930,-5897.6,0.00023542,2]
[367199010,1750698667940,-1573.74,0.00023542,2]
[367199011,1750698667949,-490.0,0.00023542,2]
[367199012,1750698667959,-1383.69,0.00023542,2]
[367199013,1750698667968,-885.33,0.00023542,2]
[367199014,1750698667978,-1501.78,0.00023542,2]
[367199015,1750698667989,-698.8,0.00023543,2]
[367199016,1750698667997,-669.68,0.00023543,2]
[367199017,1750698668006,-490.07895299,0.00023543,2]
[367199018,1750698668016,-490.0,0.00023543,2]
[367199019,1750698668026,-365.93814469,0.00023543,2]
[367199020,1750698668035,-490.0,0.00023543,2]
[367199021,1750698668045,-342.09118866,0.00023543,2]
[367199022,1750698668057,-490.0,0.00023543,2]
[367199023,1750698668071,-929.07,0.00023543,2]
[367199024,1750698668082,-490.0,0.00023543,2]
[367199025,1750698668092,-490.0,0.00023543,2]
[367199026,1750698668103,-490.0,0.00023543,2]
[367199027,1750698668113,-490.0,0.00023543,2]
[367199028,1750698668123,-490.0,0.00023543,2]
[367199029,1750698668133,-1110.49,0.00023543,2]
[367199030,1750698668144,-490.0,0.00023543,2]
[367199031,1750698668153,-500.0,0.00023543,2]
[367199032,1750698668163,-791.44,0.00023543,2]
[367199033,1750698668173,-156.96515604,0.00023543,2]
[367199034,1750698668182,-490.0,0.00023543,2]
[367199035,1750698668192,-490.0,0.00023543,2]
[367199036,1750698668201,-526.263632,0.00023543,2]
[367199037,1750698668211,-1147.96,0.00023543,2]
[367199038,1750698668221,-490.0,0.00023543,2]
[367199039,1750698668231,-490.0,0.00023543,2]
[367199040,1750698668240,-490.0,0.00023543,2]
[367199041,1750698668249,-490.0,0.00023543,2]
[367199042,1750698668259,-490.0,0.00023543,2]
[367199043,1750698668268,-490.0,0.00023543,2]
[367199044,1750698668278,-920.38,0.00023543,2]
[367199045,1750698668287,-564.09,0.00023543,2]
[367199046,1750698668296,-773.07,0.00023543,2]
[367199047,1750698668305,-178.19682788,0.00023543,2]
[367199048,1750698668315,-772.88,0.00023543,2]
[367199049,1750698668325,-974.05,0.00023543,2]
[367199050,1750698668336,-490.0,0.00023543,2]
[367199051,1750698668345,-490.0,0.00023543,2]
[367199052,1750698668355,-490.0,0.00023543,2]
[367199053,1750698668365,-311.57258097,0.00023543,2]
[367199054,1750698668374,-490.0,0.00023543,2]
[367199055,1750698668384,-490.0,0.00023543,2]
[367199056,1750698668394,-563.39,0.00023543,2]
[367199057,1750698668403,-490.0,0.00023543,2]
[367199058,1750698668413,-311.46829623,0.00023543,2]
[367199059,1750698668423,-490.0,0.00023543,2]
[367199060,1750698668432,-490.0,0.00023543,2]
[367199061,1750698668442,-490.0,0.00023543,2]
[367199062,1750698668451,-523.29,0.00023543,2]
[367199063,1750698668461,-490.0,0.00023543,2]
[367199064,1750698668470,-490.0,0.00023543,2]
[367199065,1750698668480,-490.0,0.00023543,2]
[367199066,1750698668491,-490.0,0.00023543,2]
[367199067,1750698668501,-490.0,0.00023543,2]
[367199068,1750698668510,-1284.85,0.00023543,2]
[367199069,1750698668520,-740.67,0.00023543,2]
[367199070,1750698668531,-596.54,0.00023543,2]
[367199071,1750698668541,-490.0,0.00023543,2]
[367199072,1750698668550,-490.0,0.00023543,2]
[367199073,1750698668559,-490.0,0.00023543,2]
[367199074,1750698668569,-490.0,0.00023543,2]
[367199075,1750698668581,-679.03,0.00023543,2]
[367199076,1750698668590,-795.0,0.00023543,2]
[367199077,1750698668600,-565.51,0.00023543,2]
[367199078,1750698668610,-490.0,0.00023543,2]
[367199079,1750698668619,-924.56,0.00023543,2]
[367199080,1750698668631,-1608.33,0.00023543,2]
[367199081,1750698668640,-540.42,0.00023543,2]
[367199082,1750698668650,-631.4,0.00023543,2]
[367199083,1750698668660,-1315.78,0.00023543,2]
[367199084,1750698668670,-940.16,0.00023543,2]
[367199085,1750698668680,-836.48,0.00023543,2]
[367199086,1750698668689,-490.0,0.00023543,2]
[367199087,1750698668698,-490.0,0.00023543,2]
[367199088,1750698668707,-676.41,0.00023543,2]
[367199089,1750698668716,-490.0,0.00023543,2]
[367199090,1750698668726,-490.0,0.00023543,2]
[367199091,1750698668735,-490.0,0.00023543,2]
[367199092,1750698668746,-490.0,0.00023543,2]
[367199093,1750698668755,-490.0,0.00023543,2]
[367199094,1750698668764,-1995.8,0.00023543,2]
[367199095,1750698668773,-490.0,0.00023543,2]
[367199096,1750698668783,-955.43,0.00023543,2]
[367199097,1750698668791,-946.21,0.00023543,2]
[367199098,1750698668801,-490.0,0.00023543,2]
[367199099,1750698668811,-490.0,0.00023543,2]
[367199100,1750698668820,-490.0,0.00023543,2]
[367199101,1750698668830,-1199.8,0.00023543,2]
[367199102,1750698668839,-1746.69,0.00023543,2]
[367199103,1750698668848,-1597.4,0.00023543,2]
[367199104,1750698668857,-721.98,0.00023543,2]
[367199105,1750698668868,-490.0,0.00023543,2]
[367199106,1750698668879,-1078.2,0.00023543,2]
[367199107,1750698668889,-1245.27,0.00023543,2]
[367199108,1750698668899,-490.0,0.00023543,2]
[367199109,1750698668908,-490.0,0.00023543,2]
[367199110,1750698668917,-490.0,0.00023543,2]
[367199111,1750698668926,-516.18,0.00023543,2]
[367199112,1750698668935,-490.0,0.00023543,2]
[367199113,1750698668943,-490.0,0.00023543,2]
[367199114,1750698668952,-990.07,0.00023543,2]
[367199115,1750698668961,-549.99,0.00023543,2]
[367199116,1750698668970,-490.0,0.00023543,2]
[367199117,1750698668980,-752.35,0.00023543,2]
[367199118,1750698668989,-304.29052185,0.00023543,2]
[367199119,1750698668998,-533.60057499,0.00023543,2]
[367199120,1750698669008,-311.57926212,0.00023543,2]
[367199121,1750698669017,-490.0,0.00023543,2]
[367199122,1750698669026,-490.0,0.00023543,2]
[367199123,1750698669035,-505.2092582,0.00023543,2]
[367199124,1750698669045,-1453.03,0.00023543,2]
[367199125,1750698669055,-785.71,0.00023543,2]
[367199126,1750698669069,-742.29,0.00023543,2]
[367199127,1750698669079,-1602.78,0.00023543,2]
[367199128,1750698669088,-856.74,0.00023543,2]
[367199129,1750698669097,-1829.46,0.00023543,2]
[367199130,1750698669107,-500.0,0.00023543,2]
[367199131,1750698669116,-554.78922441,0.00023543,2]
[367199132,1750698669127,-490.0,0.00023543,2]
[367199133,1750698669258,-962.15,0.00023543,2]
[367199134,1750698669269,-295.31736838,0.00023543,2]
[367199135,1750698669279,-847.97,0.00023543,2]
[367199136,1750698669289,-1010.43,0.00023543,2]
[367199137,1750698669298,-490.0,0.00023543,2]
[367199138,1750698669308,-490.0,0.00023543,2]
[367199139,1750698669318,-845.85,0.00023543,2]
[367199140,1750698669329,-490.0,0.00023543,2]
[367199141,1750698669340,-822.97,0.00023543,2]
[367199142,1750698669350,-490.0,0.00023543,2]
[367199143,1750698669359,-490.0,0.00023543,2]
[367199144,1750698669369,-490.0,0.00023543,2]
[367199145,1750698669378,-526.85,0.00023543,2]
[367199146,1750698669388,-555.69104961,0.00023543,2]
[367199147,1750698669398,-1459.19,0.00023543,2]
[367199148,1750698669407,-490.0,0.00023543,2]
[367199149,1750698669417,-1910.2,0.00023543,2]
[367199150,1750698669426,-975.14,0.00023543,2]
[367199151,1750698669435,-295.91668367,0.00023543,2]
[367199152,1750698669445,-1090.36,0.00023543,2]
[367199153,1750698669454,-490.0,0.00023543,2]
[367199154,1750698669463,-1700.88,0.00023543,2]
[367199155,1750698669473,-490.0,0.00023543,2]
[367199156,1750698669482,-490.0,0.00023543,2]
[367199157,1750698669492,-2474.52,0.00023543,2]
[367199158,1750698669501,-661.71,0.00023543,2]
[367199159,1750698669510,-1007.33,0.00023543,2]
[367199160,1750698669519,-621.4,0.00023543,2]
[367199161,1750698669528,-490.0,0.00023543,2]
[367199162,1750698669537,-1520.6,0.00023543,2]
[367199163,1750698669546,-604.07,0.00023543,2]
[367199164,1750698669556,-490.0,0.00023543,2]
[367199165,1750698669565,-490.0,0.00023543,2]
[367199166,1750698669575,-490.0,0.00023543,2]
[367199167,1750698669588,-515.83,0.00023543,2]
[367199168,1750698669597,-164.40309039,0.00023543,2]
[367199169,1750698669607,-636.82,0.00023543,2]
[367199170,1750698669618,-1671.93,0.00023543,2]
[367199171,1750698669628,-500.0,0.00023543,2]
[367199172,1750698669637,-1091.97,0.00023543,2]
[367199173,1750698669646,-490.0,0.00023543,2]
[367199174,1750698669656,-490.0,0.00023543,2]
[367199175,1750698669666,-490.0,0.00023543,2]
[367199176,1750698669675,-1337.29,0.00023543,2]
[367199177,1750698669685,-490.0,0.00023543,2]
[367199178,1750698669695,-1057.36,0.00023543,2]
[367199179,1750698669706,-897.65,0.00023543,2]
[367199180,1750698669715,-490.0,0.00023543,2]
[367199181,1750698669724,-1237.82,0.00023543,2]
[367199182,1750698669734,-513.51,0.00023543,2]
[367199183,1750698669743,-628.5,0.00023543,2]
[367199184,1750698669753,-1452.58,0.00023543,2]
[367199185,1750698669762,-490.0,0.00023543,2]
[367199186,1750698669771,-2187.25,0.00023543,2]
[367199187,1750698669781,-554.23,0.00023543,2]
[367199188,1750698669790,-541.28,0.00023543,2]
[367199189,1750698669798,-885.64,0.00023543,2]
[367199190,1750698669806,-542.88,0.00023543,2]
[367199191,1750698669816,-838.0,0.00023543,2]
[367199192,1750698669826,-2113.25,0.00023543,2]
[367199193,1750698669842,-1607.74,0.00023543,2]
[367199194,1750698669852,-608.03,0.00023543,2]
[367199195,1750698669861,-1894.29,0.00023543,2]
[367199196,1750698669870,-490.0,0.00023543,2]
[367199197,1750698669880,-490.0,0.00023543,2]
[367199198,1750698669890,-1031.09,0.00023543,2]
[367199199,1750698669899,-490.0,0.00023543,2]
[367199200,1750698669909,-490.0,0.00023543,2]
[367199201,1750698669918,-490.0,0.00023543,2]
[367199202,1750698669927,-360.38,0.00023543,2]
[367199203,1750698669936,-788.91,0.00023543,2]
[367199204,1750698669946,-490.0,0.00023543,2]
[367199205,1750698669955,-490.0,0.00023543,2]
[367199206,1750698669964,-2071.88,0.00023543,2]
[367199207,1750698669973,-1258.85,0.00023543,2]
[367199208,1750698669983,-788.65,0.00023543,2]
[367199209,1750698669992,-490.0,0.00023543,2]
[367199210,1750698670001,-490.0,0.00023543,2]
[367199211,1750698670010,-1574.29,0.00023543,2]
[367199212,1750698670019,-1152.75,0.00023543,2]
[367199213,1750698670029,-1238.42,0.00023543,2]
[367199214,1750698670039,-1608.07,0.00023543,2]
[367199215,1750698670047,-490.0,0.00023543,2]
[367199216,1750698670056,-1425.09,0.00023543,2]
[367199217,1750698670065,-490.0,0.00023543,2]
[367199218,1750698670077,-1519.63,0.00023543,2]
[367199219,1750698670089,-666.89,0.00023543,2]
[367199220,1750698670099,-490.0,0.00023543,2]
[367199221,1750698670108,-490.0,0.00023543,2]
[367199222,1750698670118,-585.27,0.00023543,2]
[367199223,1750698670127,-490.0,0.00023543,2]
[367199224,1750698670137,-1335.79,0.00023543,2]
[367199225,1750698670146,-490.0,0.00023543,2]
[367199226,1750698670156,-490.0,0.00023543,2]
[367199227,1750698670166,-1907.04,0.00023543,2]
[367199228,1750698670175,-490.0,0.00023543,2]
[367199229,1750698670184,-1660.38,0.00023543,2]
[367199230,1750698670193,-804.67,0.00023543,2]
[367199231,1750698670202,-490.0,0.00023543,2]
[367199232,1750698670212,-1140.14,0.00023543,2]
[367199233,1750698670221,-1654.5,0.00023543,2]
[367199234,1750698670231,-490.0,0.00023543,2]
[367199235,1750698670240,-490.0,0.00023543,2]
[367199236,1750698670249,-490.0,0.00023543,2]
[367199237,1750698670258,-1832.21,0.00023543,2]
[367199238,1750698670268,-490.0,0.00023543,2]
[367199239,1750698670277,-858.09,0.00023543,2]
[367199240,1750698670286,-660.75,0.00023543,2]
[367199241,1750698670296,-490.0,0.00023543,2]
[367199242,1750698670305,-490.0,0.00023543,2]
[367199243,1750698670314,-1520.18,0.00023543,2]
[367199244,1750698670323,-500.0,0.00023543,2]
[367199245,1750698670335,-258.37186659,0.00023543,2]
[367199246,1750698670345,-1435.25,0.00023543,2]
[367199247,1750698670354,-490.0,0.00023543,2]
[367199248,1750698670363,-1338.13,0.00023543,2]
[367199249,1750698670373,-1071.6,0.00023543,2]
[367199250,1750698670382,-500.0,0.00023543,2]
[367199251,1750698670391,-490.0,0.00023543,2]
[367199252,1750698670400,-1193.49,0.00023543,2]
[367199253,1750698670410,-490.0,0.00023543,2]
[367199254,1750698670419,-943.07,0.00023543,2]
[367199255,1750698670428,-765.84,0.00023543,2]
[367199256,1750698670437,-490.0,0.00023543,2]
[367199257,1750698670447,-490.0,0.00023543,2]
[367199258,1750698670456,-500.0,0.00023543,2]
[367199259,1750698670465,-490.0,0.00023543,2]
[367199260,1750698670474,-490.0,0.00023543,2]
[367199261,1750698670483,-490.0,0.00023543,2]
[367199262,1750698670493,-975.19,0.00023543,2]
[367199263,1750698670502,-1015.78,0.00023543,2]
[367199264,1750698670511,-1121.14,0.00023543,2]
[367199265,1750698670521,-490.0,0.00023543,2]
[367199266,1750698670530,-721.36,0.00023543,2]
[367199267,1750698670539,-490.0,0.00023543,2]
[367199268,1750698670549,-1496.89,0.00023543,2]